Cogmind - Beta 17 @@@ ROGUE MODE // 2026.07.01 @ 11:00:12 Player: TheLostLambda Result: Destroyed by 9R-G55(R) with Subdweller Laser Performance ------------- Evolutions (0) 0 Regions Visited (2) 400 Robots Destroyed (19) 95 Value Destroyed (285) 285 Prototype IDs (3) 60 Alien Tech Used (0) 0 Bonus (5000) 5000 TOTAL SCORE: 5840 Bonus ------- Prayed to X0-1V1 5000 Cogmind --------- Core Integrity 0/200 Matter 270/300 Energy 250/250 System Corruption 0% Temperature Cool (6) Movement Core (250) Ox4 Location -10/Subcaves Parts ------- > --- POWER (1) -------- Ion Engine > --- PROPULSION (2) --- (None) > --- UTILITY (2) ------ Seismic Detector X0-1V1's Piety Tracker > --- WEAPON (6) ------- Maul Maul > --- INVENTORY (5) ---- Ion Engine Medium Storage Unit Terrain Scanner Small Laser Grenade Launcher Peak State ------------ > --- POWER ------------ Ion Engine > --- PROPULSION ------- Improved Aluminum Leg Improved Aluminum Leg > --- UTILITY ---------- Terrain Scan Processor X0-1V1's Piety Tracker > --- WEAPON ----------- Maul Maul > --- INVENTORY -------- Ion Engine Medium Storage Unit Seismic Detector Small Laser Grenade Launcher [Rating: 24] Favorites ----------- Power Ion Engine Engine Ion Engine Propulsion Improved Aluminum Leg Leg Improved Aluminum Leg Utility Terrain Scanner Device Terrain Scanner Storage Small Storage Unit Processor Terrain Scan Processor Weapon Maul Energy Gun Small Laser Special Weapon Mining Laser Impact Weapon Maul Slashing Weapon Mining Claw Build | -11 -10 -10 ------- Run | Yrd Mat Sub Slots Evolved . | . . . Power . | . . . Propulsion . | . . . Utility . | . . . Weapon . | . . . Parts Attached 17 | 7 10 . Power 1 | 1 . . Engine 1 | 1 . . Core . | . . . Reactor . | . . . Propulsion 5 | 2 3 . Treads . | . . . Leg 5 | 2 3 . Wheel . | . . . Hover . | . . . Flight . | . . . Utility 5 | 2 3 . Device 3 | 1 2 . Storage 1 | 1 . . Processor 1 | . 1 . Hackware . | . . . Protection . | . . . Artifact . | . . . Weapon 6 | 2 4 . Energy Gun 2 | 2 . . Energy Cannon . | . . . Ballistic Gun . | . . . Ballistic Cannon . | . . . Launcher . | . . . Special Weapon 1 | . 1 . Impact Weapon 2 | . 2 . Slashing Weapon 1 | . 1 . Piercing Weapon . | . . . Special Melee Weapon . | . . . Unidentified Prototypes 1 | . 1 . Parts Lost 2 | . . 2 Power . | . . . Propulsion 2 | . . 2 Utility . | . . . Weapon . | . . . Highest Loss Streak 2 | . . 2 To Critical Strikes . | . . . Average Backups 5 | 5 5 5 Power . | . 1 1 Propulsion . | 3 . . Utility 1 | . 2 2 Weapon 1 | 1 1 2 Tool/Special . | . . . Unused Backups 11 | . 8 3 Power 1 | . . 1 Propulsion 4 | . 4 . Utility 4 | . 3 1 Weapon 2 | . 1 1 Tool/Special . | . . . Average Slot Usage (%) 99 | . 100 97 Engine 13 | . 14 13 Leg 27 | . 28 27 Device 16 | . 14 27 Storage 1 | . 2 . Processor 9 | . 11 . Energy Gun 7 | . 8 . Special Weapon 3 | . 3 . Impact Weapon 16 | . 14 26 Slashing Weapon 1 | . 1 . Peak Build Rating 24 | 8 24 23 Average Rating 11 | 5 10 22 On Entrance 10 | . 8 23 Avg Prop Armor Cover (%) . | . . . Naked Turns . | . . . Heaviest Build 14 | 14 14 13 Greatest Support 26 | 20 26 26 Greatest Overweight (x) 1 | 1 . . Average Overweight (x) . | . . . Largest Inventory Capacity 8 | 8 8 5 Average Capacity 5 | 7 5 5 Most Carried 8 | 8 8 5 Average Carried 5 | 5 5 5 Final Capacity 8 | 8 5 5 Final Carried 8 | 8 5 5 Class Distribution -------------------- 100% | Mutant Dominant Class ---------------- Mutant | -10/Materials Mutant | -10/Subcaves Resources | -11 -10 -10 ----------- Run | Yrd Mat Sub Matter Collected 400 | 270 130 . Remotely . | . . . Salvage Created 567 | 193 374 . Parts 36 | 16 20 . Haulers Intercepted 1 | . 1 . Recyclers Shooed . | . . . Parts Field Recycled . | . . . Retrieved Matter . | . . . Parts Self-Destructed 7 | . . 7 Prevented . | . . . Parts Restored . | . . . Kills | -11 -10 -10 ------- Run | Yrd Mat Sub Combat Hostiles Destroyed 6 | . 6 . Melee 3 | . 3 . Classes Destroyed 9 | 2 7 . Worker 2 | . 2 . Builder 2 | . 2 . Tunneler 4 | 4 . . Hauler 1 | . 1 . Recycler 1 | 1 . . Mechanic 1 | . 1 . Watcher 2 | . 2 . Swarmer 2 | . 2 . Grunt 4 | . 4 . Best Kill Streak 8 | 2 8 . Combat Bots Only 4 | . 4 . Max Kills in Single Turn 1 | 1 1 . Gunslinging . | . . . Exploded . | . . . Melee 1 | . 1 . Uniques/NPCs Destroyed . | . . . Combat | -11 -10 -10 -------- Run | Yrd Mat Sub Hostile Shots Fired 36 | . 19 17 Missed 8 | . 5 3 Hits 28 | . 14 14 Projectile 28 | . 14 14 Damage Taken 467 | . 154 313 Core 143 | . 36 107 Absorbed by Shields . | . . . Core Remaining (%) 100 | 100 . . Volleys Fired 31 | 13 17 1 Largest 2 | 2 2 1 Hottest 140 | 80 140 40 Shots Fired 49 | 24 24 1 Gun 41 | 24 16 1 Cannon . | . . . Launcher . | . . . Special 8 | . 8 . Kinetic . | . . . Thermal 38 | 13 24 1 Explosive . | . . . Electromagnetic 11 | 11 . . Robot Hit Streak 6 | 6 3 2 Robot Miss Streak 3 | 2 3 . Penetration Max . | . . . Secondary Targets . | . . . Shots Hit Robots 35 | 13 19 3 Core Hits 11 | 5 6 . Critical Kills . | . . . Critical Parts Destroyed 6 | . 5 1 Critical Strikes 7 | . 5 2 Smash 7 | . 5 2 Melee Attacks 32 | . 26 6 Impact 31 | . 25 6 Slashing 1 | . 1 . Piercing . | . . . Sneak Attacks 3 | . 3 . Combat Hostiles . | . . . Follow-up Attacks 1 | . 1 . Damage Inflicted 969 | 161 713 95 Guns 230 | 161 57 12 Cannons . | . . . Explosions . | . . . Melee 739 | . 656 83 Ramming . | . . . Kinetic . | . . . Thermal 146 | 77 57 12 Explosive . | . . . Electromagnetic 84 | 84 . . Impact 739 | . 656 83 Slashing . | . . . Piercing . | . . . Highest Corruption . | . . . Average Corruption . | . . . Corruption Purged . | . . . Corruption Blocked . | . . . Overload Shots . | . . . Overflow Damage 372 | . 342 30 Projectiles . | . . . Explosions . | . . . Melee 372 | . 342 30 Knockbacks 1 | . 1 . Impact 1 | . 1 . Kinetic . | . . . Secondary . | . . . Self-Inflicted Damage . | . . . Shots . | . . . Rammed . | . . . Targets Rammed . | . . . Kicked . | . . . Crushed . | . . . Highest Temperature 200 | 72 200 . Average Temperature 57 | 28 78 . Received Heat Transfer 117 | . 45 72 Siege Activations . | . . . Martial Activations . | . . . Shielding Activations . | . . . Robots Disrupted . | . . . Combat Hostiles . | . . . Robots Corrupted 7 | . 7 . Combat Hostiles 3 | . 3 . Parts Fried 12 | . 12 . Impact Corruptions 14 | . 13 1 Robots Melted . | . . . Combat Hostiles . | . . . Parts Melted . | . . . Heat Transferred 325 | 175 125 25 Parts Sabotaged . | . . . Parts Stolen . | . . . Parts Stripped . | . . . Power Chain Reactions . | . . . Alert | -11 -10 -10 ------- Run | Yrd Mat Sub Maximum Alert Level . | . . . Low Security (%) 100 | 100 100 . Level 1 . | . . . Level 2 . | . . . Level 3 . | . . . Level 4 . | . . . Level 5 . | . . . High Security . | . . . Max Security . | . . . Peak Influence 103 | 10 103 . Initial . | . . . Average 31 | 1 37 . Influence Increases 294 | 25 269 . Destroy 0b10 Robot/C 120 | . 120 . Destroy 0b10 Robot/NC 65 | 25 40 . Destroy Leader 36 | . 36 . Successful Hack 32 | . 32 . Disable Machine 15 | . 15 . Destroy Structure 11 | . 11 . Lose Combat Pursuer 15 | . 15 . Influence Decreases 294 | 25 245 24 Entered New Map 12 | . . 12 Time Decay 282 | 25 245 12 Squads Dispatched . | . . . Investigation . | . . . Extermination . | . . . Reinforcement . | . . . Assault . | . . . Garrison . | . . . Intercept . | . . . Searches Triggered . | . . . Construction Impeded . | . . . Haulers Reinforced . | . . . Active Scanning Responses . | . . . Cargo Convoy Interrupts . | . . . Stealth | -11 -10 -10 --------- Run | Yrd Mat Sub Distress Signals . | . . . Communications Jammed . | . . . Distress Signals . | . . . Times Spotted 20 | . 17 3 Peak Tracking Total 4 | . 4 3 Tactical Retreats 1 | . 1 . Traps | -11 -10 -10 ------- Run | Yrd Mat Sub Traps Triggered . | . . . Indirectly . | . . . Trap Hack Attempts . | . . . Triggered . | . . . Disarmed . | . . . Reprogrammed . | . . . Reused . | . . . Traps Extracted . | . . . Installed . | . . . Triggered . | . . . Machines | -11 -10 -10 ---------- Run | Yrd Mat Sub Machines Disabled 1 | . 1 . Max in Single Turn 1 | . 1 . Machines Repaired . | . . . Machines Dismantled . | . . . Machines Sabotaged . | . . . Overloaded Fab Kills . | . . . Hacking | -11 -10 -10 --------- Run | Yrd Mat Sub Machines Accessed 10 | . 9 1 Terminals 8 | . 8 . Fabricators . | . . . Repair Stations . | . . . Recycling Units 1 | . 1 . Scanalyzers . | . . . Garrison Access . | . . . Total Hacks 40 | . 37 3 Successful 25 | . 22 3 Failed 15 | . 15 . Catastrophic 1 | . 1 . Database Lockouts . | . . . Manual 18 | . 18 . Terminals 35 | . 35 . Fabricators . | . . . Repair Stations . | . . . Recycling Units 2 | . 2 . Scanalyzers . | . . . Garrison Access . | . . . Terminal Hacks 15 | . 12 3 Record 3 | . . 3 Robot Analysis 3 | . 3 . Prototype ID Bank 1 | . 1 . Branch Access Points 1 | . 1 . Scanalyzer Index 1 | . 1 . Alert Level 1 | . 1 . Dispatch Records 1 | . 1 . Transport Status 1 | . 1 . Hauler Manifests 1 | . 1 . Zone Layout 2 | . 2 . Fabricator Hacks . | . . . Repair Station Hacks . | . . . Recycling Unit Hacks 1 | . 1 . Report Inventory 1 | . 1 . Scanalyzer . | . . . Garrison Access Hacks . | . . . Unauthorized Hacks 9 | . 9 . Terminals 8 | . 8 . Assimilate 1 | . 1 . Botnet 7 | . 7 . Fabricators . | . . . Repair Stations . | . . . Recycling Units 1 | . 1 . Monitor 1 | . 1 . Scanalyzers . | . . . Garrison Access . | . . . Data Cores Recovered . | . . . Used . | . . . Hacking Detections 8 | . 8 . Full Trace Events . | . . . Feedback Events . | . . . Feedback Blocked . | . . . Robot Schematics Acquired . | . . . Robots Built . | . . . Authchips . | . . . Time . | . . . Total Robot Build Rating . | . . . Part Schematics Acquired . | . . . Parts Built . | . . . Authchips . | . . . Time . | . . . Total Part Build Rating . | . . . Part Studies Acquired . | . . . Parts Repaired . | . . . Time . | . . . Parts Recycled . | . . . Recycled Matter . | . . . Retrieved Matter . | . . . Retrieved Components . | . . . Parts Scanalyzed . | . . . Part Schematics Acquired . | . . . Parts Damaged . | . . . Bothacking | -11 -10 -10 ------------ Run | Yrd Mat Sub Used RIF Installer . | . . . Robots Hacked . | . . . Non-combat . | . . . Combat . | . . . Robot Hacks Applied . | . . . Relay Couplers Released . | . . . Fabnet Peak Effective % . | . . . Robots Rewired . | . . . Allies Hacked . | . . . Hacks Repelled . | . . . Allies | -11 -10 -10 -------- Run | Yrd Mat Sub Total Allies 1 | . 1 . Largest Group 1 | . 1 1 Highest-Rated Group 10 | . 10 10 Highest-Rated Ally 10 | . 10 10 Total Orders . | . . . Ally Attacks . | . . . Total Damage . | . . . Kills . | . . . Allies Corrupted . | . . . Allies Melted . | . . . X0-1V1 Amusement Gains 15 | . 15 . Good Acts 2 | . . 2 Intel | -11 -10 -10 ------- Run | Yrd Mat Sub Active Infowar (turns) 1155 | 13 970 172 Terrain 821 | . 821 . Seismic 337 | 13 152 172 Robot Analysis Total 3 | . 3 . Derelict Logs Recovered 1 | . . 1 Drone Launches . | . . . Drone Recoveries . | . . . Exploration | -11 -10 -10 ------------- Run | Yrd Mat Sub Turns Passed 1325 | 182 971 172 Spaces Moved 871 | 103 644 124 Core 4 | 4 . . Treads . | . . . Legs 867 | 99 644 124 Wheels . | . . . Hover . | . . . Flight . | . . . Fastest Speed 50 | 50 120 120 Average Speed 119 | 118 120 120 Slowest Speed 120 | 120 120 120 Overloaded Moves . | . . . Propulsion Burnouts . | . . . Robots Hopped . | . . . Potential Cave-ins . | . . . Cave-ins Triggered . | . . . Exploration Rate (%) 35 | 5 96 6 Regions Visited 2 Branch Regions 1 Pre-discovered Areas 1 | . . 1 Known Exits Taken . | . . . Unknown Exits Taken 2 | 1 1 . Scrap Searched . | . . . Spaces Dug 11 | . 11 . Terrain Destroyed 11 | . 11 . Melee 7 | . 7 . Projectile 4 | . 4 . AOE . | . . . Terrain Rammed . | . . . Walls Destroyed . | . . . Machines Disabled . | . . . Actions | -11 -10 -10 --------- Run | Yrd Mat Sub Total 1022 | 136 752 134 Wait 42 | 5 35 2 Move 869 | 102 643 124 Hop . | . . . Pick Up 15 | 9 6 . Fast Attach 9 | 6 3 . Attach 1 | 1 . . Detach 2 | . 2 . Swap 14 | . 12 2 Drop 10 | . 10 . Fire 31 | 13 17 1 Melee 29 | . 24 5 Ram . | . . . Kick . | . . . Crush . | . . . Escape Stasis . | . . . Rewire . | . . . Trap . | . . . Miscellaneous . | . . . Route ------- -11/Scrapyard -10/Materials (discovered 5 exits: [*Mat x2] / *Min x2 / *Sub) -10/Subcaves History --------- Turn | Location | Event 13 | -11/Scrapyard | Discovered new exit (range 13) 183 | -11/Scrapyard | Entered Materials 193 | -10/Materials | Identified exit to Mines 313 | -10/Materials | Build established: Mutant 387 | -10/Materials | Discovered new exit (range 9) 606 | -10/Materials | Discovered new exit (range 12) 1127 | -10/Materials | Discovered new exit (range 10) 1136 | -10/Materials | Made a sacrifice at D.C.S.S. Altar Unit 1137 | -10/Materials | Core integrity fell below 50% 1154 | -10/Materials | Entered Subcaves 1154 | -10/Subcaves | Accompanied by 1 ally 1155 | -10/Subcaves | Approached by a straggling Scientist 1159 | -10/Subcaves | Ranged accuracy permanently improved by X0-1V1 (+5%; -50 max core) 1208 | -10/Subcaves | Learned location of Zion (-6) 1243 | -10/Subcaves | Visited Clippyterm 1246 | -10/Subcaves | Learned Factory stockpile data 1308 | -10/Subcaves | A Subdweller sparked back to life 1308 | -10/Subcaves | A Subdweller sparked back to life 1308 | -10/Subcaves | A Subdweller sparked back to life 1317 | -10/Subcaves | Weapon slot count temporarily expanded by X0-1V1 (+4) 1325 | -10/Subcaves | Core integrity fell below 20% 1326 | -10/Subcaves | Destroyed by 9R-G55(R) with Subdweller Laser Last Messages --------------- 8T-48C(c): "I think it's somewhere southeast of here" 01308_ 9R-G55(R) creaks and sparks as it begins to move. 01308_ R2-60A(R) creaks and sparks as it begins to move. 01308_ UA-OXP(R) creaks and sparks as it begins to move. 01314_ 9R-G55(R) suffers critical hit (Smash). 01314_ Destroyed Sub. Optics. 01314_ 9R-G55(R) system corrupted by crushing effect. 01317_ X0-1V1: "Weapons, camera, action!" (+4 weapon slots) 01320_ Imp. Aluminum Leg destroyed. 01323_ UA-OXP(R) suffers critical hit (Smash). 01323_ 9R-G55(R) affixes Scrap Shield Fragment to Scrap Shield. 01326_ 9R-G55(R) IFF system glitched. 01326_ X0-1V1 giggles madly! Map ----- +----------------------------------------------------+ | ?????????????????# #### ##?????????????????????? | | ?????????????????## #?#"" ##?????????????????????? | | ??????????????????# ?## #?????????????????????? | | ??????????????????# ### ##?????????????????????? | | ??????????????????# ## ##?????????????????????? | | ??????????????????# # #?????????????????????? | | ????????????????### "#?????????????????????? | | ????????????????# "" "#?????????????????????? | | ????????????????##""##""" #?????????????????????? | | ?????????????????#""?#" ##?????????????????????? | | ????????????????? " ?## #??????????????????????? | | ??????????????????? ??# #??????????????????????? | | ?????????????????#????# ##??????????????????????? | | ?????????????????# ???## ##??????????????????????? | | ????????????????## ???# #??????????????????????? | | ????????????????# #### ##??????????????????????? | | ???????????????## ##??????????????????????? | | ???????????????# #??????????????????????? | | ???????????????# #### #??????????????????????? | | ?????????????????????## c##??????????????????????? | | ??????????????????????# ##??????????????????????? | | ??????????????????????# #??????????????????????? | | ??????????????????????# o #??????????????????????? | | ??????????????????????# ######?????????????????? | | ?????????????????????## < #?????????????????? | | ?????????????????????# R @R < #?????????????????? | | ????????????????????# % R % &#?????????????????? | | ????????????????????# <#?????????????????? | | ????????????????????# < ##?????????????????? | | ????????????????????# ## ###??????????????????? | | ??????????????????? ##? #????????????????????? | | ??????????????????# #?? #????????????????????? | | ??????????????????## %???% ????????????????????? | | ???????????????????## ????#????????????????????? | | ????????????????????#% ?????????????????????????? | | ???????????????????? ?????????????????????????? | | ???????????????????? ?????????????????????????? | | ???????????????????#####?????????????????????????? | | ?????????????????????????????????????????????????? | | ?????????????????????????????????????????????????? | | ?????????????????????????????????????????????????? | | ?????????????????????????????????????????????????? | | ?????????????????????????????????????????????????? | | ?????????????????????????????????????????????????? | | ?????????????????????????????????????????????????? | | ?????????????????????????????????????????????????? | | ?????????????????????????????????????????????????? | | ?????????????????????????????????????????????????? | | ?????????????????????????????????????????????????? | | ?????????????????????????????????????????????????? | +----------------------------------------------------+ Best States ------------- Heat Dissipation 25 Energy Generation 10 Energy Capacity 250 Matter Stores 300 Matter Capacity 300 Sight Range 16 Terrain Scan Range 14 Terrain Scan Density 85 Evasion (%) 55 Item Schematics ----------------- None Robot Schematics ------------------ None Fabricated ------------ Nothing Repaired ---------- Nothing Studied --------- None Alien Tech Used ----------------- None Achievements -------------- None Challenges ------------ None Game ------ Seed AdvancedMasterTorch Manual? 0 Play Time 00:30:53 Cumulative 73.2 hours Start 2026.07.01 @ 10:24:17 End 2026.07.01 @ 11:00:12 Sessions 1 Manual Loads 0 Difficulty Rogue Special Mode None Game No. 32 Rogue 32 Adventurer 0 Explorer 0 Win Type - Total 1 Types 1/0/0/0/0/0/0/0/0/0 Lore% 30 Gallery% 39 Achievement% 33 Wizard Run 0 Options --------- Layout 1 ASCII 0 Keyboard 0 Movement Arrows Keybinds 0 Fullscreen 2 Font 48/Smallcaps Map View 50x35 Zoom Use 0% Tactical HUD 1 Map Filters NONE Filters NONE Steam 1 RUN: e2bb8eca-9784-4796-9772-e0ed2389a5ce